bitfinex/quotes_ETHUSD_20260302
["timestamp","ask_amount","ask_price","bid_price","bid_amount"]
[1772476115242,0.39239666,2036.4,2035.1,7.53682959]
[1772476115449,4.91031656,2036.6,2035.1,7.53682959]
[1772476115650,4.91005253,2036.7,2035.1,7.53682959]
[1772476115848,3.30664971,2036.6,2035.1,7.53682959]
[1772476116017,7.94744337,2036.7,2035.1,7.53682959]
[1772476116214,3.30665071,2036.6,2035.1,7.53682959]
[1772476116413,7.94744337,2036.7,2035.1,7.53682959]
[1772476116617,3.3070753,2036.6,2035.1,7.53682959]
[1772476116814,7.94744337,2036.7,2035.1,7.53682959]
[1772476117016,3.31318267,2036.6,2035.1,7.53682959]
[1772476117227,0.3930349,2036.5,2035.1,7.53682959]
[1772476117435,7.94744337,2036.7,2035.1,7.53682959]
[1772476117749,3.31426004,2036.6,2035.1,7.53682959]
[1772476118045,0.39337289,2036.5,2035.1,7.53682959]
[1772476118232,1.22745936,2036.8,2035.1,7.53682959]
[1772476118434,3.31493567,2036.7,2035.1,7.53682959]
[1772476118637,0.39346058,2036.6,2035.1,7.53682959]
[1772476118831,1.22745936,2036.8,2035.1,7.53682959]
[1772476119037,3.31493567,2036.7,2035.1,7.53682959]
[1772476119250,0.39346058,2036.6,2035.1,7.53682959]
[1772476119544,1.22745936,2036.8,2035.2,6.30841594]
[1772476119740,1.22745936,2036.8,2035.1,1.22841365]
[1772476119741,3.03739084,2036.6,2035.4,6.30841594]
[1772476120041,3.03739084,2036.6,2035.6,6.30841594]
[1772476120042,4.2649872,2036.5,2035.6,6.30841594]
[1772476121345,3.43131725,2036.4,2035.6,6.30841594]
[1772476121640,0.39392641,2036.3,2035.6,6.30841594]
[1772476121849,3.03739084,2036.4,2035.6,6.30841594]
[1772476122018,1.62170099,2036.3,2035.7,1.22807879]
[1772476122345,1.22777458,2036.3,2035.7,1.22807879]
[1772476123253,3.03739084,2036.7,2035.8,6.30841594]
[1772476123418,3.32391538,2036.6,2035.8,6.30841594]
[1772476123618,3.32391538,2036.5,2035.8,6.30841594]
[1772476123820,0.39437274,2036.4,2035.8,6.30841594]
[1772476124049,3.03739084,2036.7,2035.8,6.30841594]
[1772476124349,1.22759636,2036.5,2035.9,1.22795815]
[1772476124514,0.39437274,2036.4,2035.9,7.53637409]
[1772476124718,1.22757961,2036.6,2035.9,7.53637409]
[1772476124919,3.43204764,2036.5,2035.7,6.30841594]
[1772476125121,0.3946568,2036.4,2035.7,7.53648537]
[1772476125453,0.3946568,2036.3,2035.7,7.53648537]
[1772476125632,3.03739084,2036.5,2035.7,7.53648537]
[1772476125837,0.39497165,2036.4,2035.7,7.53648537]
[1772476126041,0.39497165,2036.3,2035.7,7.53648537]
[1772476126220,0.39497165,2036.2,2035.7,7.53648537]
[1772476126422,1.2277485,2036.3,2035.7,7.53648537]
[1772476126632,0.3953378,2036.2,2035.7,7.53648537]
[1772476126835,1.2277485,2036.3,2035.7,7.53648537]
[1772476127120,3.03739084,2036.5,2035.7,7.53648537]
[1772476127429,1.22759823,2036.5,2035.7,7.53648537]
[1772476128649,4.91027837,2036.6,2035.7,7.53648537]
[1772476129050,3.08635529,2036.9,2035.7,7.53648537]
[1772476129228,6.12374613,2036.9,2035.7,7.53648537]
[1772476129548,3.03739084,2036.4,2035.5,1.2281614]
[1772476130539,3.03739084,2036.4,2035.4,7.73114348]
[1772476130745,3.03739084,2036.2,2035.4,8.95937227]
[1772476132927,1.22783753,2036.1,2035.6,0.001]
[1772476133253,0.002,2036.0,2035.6,0.001]
[1772476133844,0.002,2036.0,2035.7,6.12114348]
[1772476134553,0.002,2036.0,2035.6,0.001]
[1772476135754,0.002,2036.0,2035.6,1.22913912]
[1772476137753,0.002,2036.0,2035.6,0.001]
[1772476138066,3.03939084,2036.0,2035.6,0.001]
[1772476139358,0.002,2036.0,2035.6,1.22912917]
[1772476139528,0.002,2036.0,2035.6,0.001]
[1772476140229,1.22989783,2036.0,2035.6,0.001]
[1772476140637,0.002,2036.0,2035.6,0.001]
[1772476140845,4.90957494,2036.9,2035.6,0.001]
[1772476140846,1.22753608,2036.6,2035.7,6.12114348]
[1772476141060,1.22738603,2036.9,2035.7,6.12114348]
[1772476142539,1.22738603,2036.9,2035.9,6.12114348]
[1772476143132,4.26477687,2036.9,2035.9,7.73414348]
[1772476143333,4.26477687,2036.9,2036.0,6.12114348]
[1772476144966,4.26477687,2036.9,2036.1,1.22783753]
[1772476146059,3.03739084,2036.7,2035.7,7.34922227]
[1772476147061,4.26492692,2036.6,2035.9,0.001]
[1772476147571,1.22753608,2036.6,2035.9,6.12214348]
[1772476148073,3.03639084,2036.3,2035.7,0.001]
[1772476148548,3.03639084,2036.3,2035.7,1.22907368]
[1772476148746,3.03639084,2036.3,2035.7,0.001]
[1772476148932,1.22765664,2036.4,2035.7,0.001]
[1772476149132,4.26404748,2036.4,2035.7,0.001]
[1772476150351,3.03639084,2036.3,2035.7,0.001]
[1772476151065,4.26416807,2036.2,2035.7,0.001]
[1772476151267,5.44860884,2035.8,2035.4,0.001]
[1772476151563,1.85,2035.7,2035.4,0.001]
[1772476151972,4.88639084,2035.7,2035.4,0.001]
[1772476153859,1.22813912,2035.6,2035.4,0.001]
[1772476156186,7.57772634,2035.6,2034.9,0.001]
[1772476156675,7.57772634,2035.6,2034.9,1.22955366]
[1772476156977,1.2280594,2035.8,2034.9,7.58501504]
[1772476160679,5.96392447,2036.0,2035.0,6.16513337]
[1772476161278,5.96392447,2036.0,2035.1,0.001]
[1772476161862,5.96392447,2035.8,2035.1,0.001]
[1772476162674,1.22807879,2035.7,2035.1,0.001]
[1772476163685,5.96392447,2035.2,2034.9,0.001]
[1772476163851,5.96392447,2035.0,2034.7,0.001]
[1772476164051,8.37614247,2035.0,2034.6,0.001]
[1772476164649,1.2285616,2034.9,2034.6,0.001]
[1772476166550,1.22842413,2035.2,2034.6,6.16613337]
[1772476166757,3.09142413,2035.2,2034.6,6.16613337]
[1772476167094,3.09142413,2035.2,2034.6,0.001]
[1772476167680,9.0553486,2035.2,2034.6,0.001]
[1772476172064,5.96392447,2035.1,2033.9,1.607]
[1772476172390,8.37614247,2034.4,2033.7,6.16513337]
[1772476172595,1.867,2034.3,2033.7,6.16513337]
[1772476174182,1.22898436,2034.2,2033.7,6.16513337]
[1772476174562,1.22898436,2034.2,2034.0,0.001]
[1772476180203,7.19290883,2034.2,2033.5,6.16613337]
[1772476180368,5.96392447,2034.1,2033.5,6.16613337]
[1772476180566,1.881,2034.0,2033.5,6.16613337]
[1772476181707,1.22916564,2033.9,2033.5,6.16613337]
[1772476183779,1.22916564,2033.9,2033.3,0.001]
[1772476183780,5.96392447,2033.8,2033.3,0.001]
[1772476184101,5.96392447,2033.5,2032.8,0.001]
[1772476184303,1.886,2033.4,2032.8,0.001]
[1772476184803,1.886,2033.4,2032.8,1.23082452]
[1772476184984,1.887,2033.3,2032.8,7.39595789]
[1772476185299,1.22916564,2033.9,2032.8,7.39595789]
[1772476185598,1.887,2033.8,2032.8,7.39595789]
[1772476185971,1.22928652,2033.7,2032.8,7.39595789]
[1772476187100,7.19321099,2033.7,2032.8,6.16613337]
[1772476187308,7.19321099,2033.7,2032.8,7.39595264]
[1772476187508,7.19321099,2033.7,2033.5,0.001]
[1772476187806,7.19321099,2033.7,2032.8,7.39595264]
[1772476188015,7.19321099,2033.7,2033.2,0.001]
[1772476190029,7.19321099,2033.7,2032.8,6.16613337]
[1772476190325,7.19321099,2033.7,2032.8,7.39596412]
[1772476190326,6.11237415,2033.6,2032.8,7.39596412]
[1772476190626,1.22946788,2033.4,2032.8,7.39596412]
[1772476191281,1.891,2033.5,2032.8,7.39596412]
[1772476191882,1.22916564,2033.9,2032.9,6.49784265]
[1772476192077,1.22915064,2034.0,2032.9,6.49784265]
[1772476192282,1.891,2033.8,2032.9,8.10484265]
[1772476192811,1.891,2033.8,2033.1,6.49784265]
[1772476193004,3.12023277,2033.8,2033.1,6.49784265]
[1772476193220,1.891,2033.8,2033.1,6.49784265]
[1772476193436,3.12025536,2033.8,2033.1,6.49784265]
[1772476193790,1.891,2033.8,2033.1,6.49784265]
[1772476194941,1.891,2033.8,2033.3,6.49784265]
[1772476195248,3.11906532,2034.1,2033.3,6.49784265]
[1772476195419,1.89,2034.1,2033.3,6.49784265]
[1772476195942,1.23103086,2034.2,2033.3,8.10684265]
[1772476195943,0.002,2034.2,2033.3,8.10684265]
[1772476197141,0.002,2034.2,2033.5,6.49784265]
[1772476198210,0.002,2034.2,2033.5,8.10784265]
[1772476199146,0.002,2034.2,2033.7,6.49784265]
[1772476200051,0.002,2034.0,2033.7,6.49784265]
[1772476200346,0.002,2034.5,2033.7,6.49784265]
[1772476200546,0.002,2035.6,2034.7,6.49784265]
[1772476200547,7.3405736,2035.5,2034.7,6.49784265]
[1772476200842,7.3445736,2035.5,2034.4,6.49784265]
[1772476201139,1.2283805,2035.2,2034.4,7.72666061]
[1772476201636,6.11637415,2035.1,2034.2,1.22895452]
[1772476201843,6.11637415,2035.1,2034.2,7.72679717]
[1772476202542,6.11637415,2035.1,2034.2,6.49784265]
[1772476203244,7.34087537,2035.0,2034.2,7.72679622]
[1772476203434,1.886,2034.9,2034.2,7.72679622]
[1772476203630,1.886,2034.9,2034.2,6.49784265]
[1772476203631,8.00237415,2034.9,2034.2,6.49784265]
[1772476203834,6.11637415,2034.8,2034.0,1.22909622]
[1772476204335,0.004,2034.7,2034.0,7.72693887]
[1772476204914,0.004,2034.6,2034.0,7.72693887]
[1772476205115,1.89,2034.9,2034.0,7.72693887]
[1772476205315,1.22862197,2034.8,2034.0,7.72693887]
[1772476205517,0.004,2034.8,2034.0,7.72693887]
[1772476205712,0.004,2034.7,2034.1,2.47987285]
[1772476205973,1.22841979,2035.2,2034.2,6.49784265]
[1772476207210,7.34079394,2035.2,2034.2,6.49784265]
[1772476207411,7.34079394,2035.2,2034.3,1.22892395]
[1772476207841,7.34079394,2035.2,2034.3,7.7267666]
[1772476208044,7.34079394,2035.2,2034.1,2.47987285]
[1772476208245,6.11237415,2034.9,2033.9,1.22914253]
[1772476208426,6.11237415,2034.7,2033.9,1.22914253]
[1772476208623,6.11237415,2034.7,2033.8,1.22917713]
[1772476209547,6.11237415,2034.5,2033.8,1.22917713]
[1772476210319,6.11237415,2034.5,2033.3,6.49784265]
[1772476210518,6.11237415,2034.4,2033.4,1.22946788]
[1772476210847,3.38594225,2034.5,2033.3,1.22950379]
[1772476210848,6.11237415,2034.2,2033.3,1.22950379]
[1772476211546,1.22904478,2034.1,2033.2,4.91833788]
[1772476211726,7.34141893,2034.1,2033.0,4.132848]
[1772476211927,7.34141893,2034.1,2033.0,1.28918443]
[1772476212555,7.34141893,2034.1,2033.8,0.001]
[1772476212761,7.34141893,2034.1,2033.0,1.28918443]
[1772476212961,7.34141893,2034.1,2033.0,2.51889344]
[1772476213168,7.34141893,2034.1,2033.5,0.001]
[1772476213851,8.00037415,2034.0,2033.5,0.001]
[1772476214758,6.11237415,2033.9,2033.0,9.01673609]
[1772476215950,7.34158839,2033.9,2033.0,9.01673609]
[1772476216126,8.36637683,2033.9,2033.1,5.95658638]
[1772476216327,8.36637683,2033.9,2033.0,2.51889344]
[1772476216548,6.47837683,2033.8,2033.0,2.51889344]
[1772476216719,6.47837683,2033.8,2033.0,8.47547982]
[1772476216918,1.888,2033.9,2033.1,5.95658638]
[1772476217140,8.36637683,2033.9,2033.1,5.95658638]
[1772476217854,1.22922607,2033.8,2033.1,5.95658638]
[1772476218060,7.62934102,2033.8,2033.1,1.22960797]
[1772476218359,1.22922607,2033.8,2033.1,7.37514638]
[1772476219455,1.889,2033.8,2033.1,7.37514638]
[1772476219961,1.22928652,2033.7,2033.1,7.37514638]
[1772476220251,1.22928652,2033.7,2033.0,2.51885676]
[1772476220580,8.29011495,2033.9,2033.0,2.51885676]
[1772476220754,8.36656755,2034.6,2033.2,6.14553841]
[1772476220755,4.9150929,2034.6,2033.2,6.14553841]
[1772476221058,11.31520785,2034.6,2033.2,6.14553841]
[1772476221436,6.40011495,2034.5,2033.2,6.14553841]
[1772476221639,6.40011495,2034.5,2033.4,6.14553841]
[1772476222459,6.40011495,2034.3,2033.4,1.22946788]
[1772476222660,8.29211495,2034.3,2033.4,1.22946788]
[1772476222961,1.892,2034.3,2033.4,7.37500629]
[1772476223182,1.891,2034.5,2033.4,7.37500629]
[1772476224230,6.40011495,2034.4,2033.4,7.37500629]
[1772476224459,1.89,2034.5,2033.4,7.37500629]
[1772476225359,0.002,2034.4,2033.4,7.37500629]
[1772476228083,6.40011495,2034.3,2033.4,7.37500629]
[1772476228656,0.002,2034.4,2033.4,7.37500629]
[1772476232778,0.002,2034.4,2033.6,6.14553841]
[1772476232978,0.002,2034.4,2033.8,6.14553841]
[1772476233675,6.40211495,2034.4,2033.5,7.75853841]
[1772476233852,6.40211495,2034.4,2033.5,8.98790315]
[1772476234689,6.40011495,2034.2,2033.3,0.001]
[1772476235269,6.40011495,2034.0,2033.3,0.001]
[1772476236002,7.62915973,2034.1,2033.3,6.14653841]
[1772476237473,7.62915973,2034.1,2033.5,0.001]
[1772476238188,0.002,2034.2,2033.5,6.14653841]
[1772476239076,1.23099345,2034.2,2033.5,6.14653841]
[1772476239274,0.002,2034.2,2033.5,6.14653841]
[1772476239473,0.002,2034.4,2033.6,6.14553841]
[1772476240182,6.40211495,2034.4,2033.6,7.75853841]
[1772476242095,7.63102326,2034.4,2033.7,7.37482493]
[1772476242299,7.63102326,2034.4,2033.5,0.001]
[1772476242300,6.40011495,2034.2,2033.5,0.001]
[1772476242581,6.40011495,2034.0,2033.5,0.001]
[1772476242781,6.40011495,2033.9,2033.3,0.001]
[1772476242985,6.40011495,2033.6,2033.0,1.28918443]
[1772476243192,2.4171646,2033.7,2032.8,1e-08]
[1772476243193,6.40011495,2033.4,2032.8,1e-08]
[1772476244061,7.6296433,2033.3,2032.8,1e-08]
[1772476244674,7.6296433,2033.3,2032.5,2.10701026]
[1772476244675,7.6296433,2033.3,2032.5,0.001]
[1772476245264,7.6296433,2033.3,2032.1,6.14553841]
[1772476245265,2.4171646,2033.1,2032.1,6.14553841]
[1772476245471,6.40011495,2032.9,2031.6,7.75853841]
[1772476245786,1.891,2033.0,2031.5,1.23061777]
[1772476245787,6.40011495,2032.7,2031.5,1.23061777]
[1772476245978,6.40011495,2032.5,2031.5,1.23061777]
[1772476246198,1.23007282,2032.4,2031.5,7.37615618]
[1772476246477,3.12070978,2033.0,2031.7,6.14553841]
[1772476248273,3.12070978,2033.0,2031.9,5.88532614]
[1772476248801,1.22963416,2033.2,2031.9,5.88532614]
[1772476249303,1.22950891,2033.4,2032.0,0.065536]
[1772476249599,1.22938982,2033.6,2032.3,5.88532614]
[1772476249799,7.11629016,2033.6,2032.4,1.612]
[1772476249990,7.11629016,2033.6,2032.5,5.88532614]
[1772476250570,7.11629016,2033.6,2032.6,7.11527792]
[1772476250795,3.12031968,2033.7,2032.6,7.11527792]
[1772476251208,1.891,2033.7,2032.6,7.11527792]
[1772476251770,3.12029189,2033.7,2032.6,7.11527792]
[1772476252205,1.891,2033.7,2032.6,7.11527792]
[1772476252413,1.22907004,2034.1,2032.6,7.11527792]
[1772476252589,0.002,2034.2,2032.6,7.11527792]
[1772476253810,0.002,2034.2,2033.0,5.88532614]
[1772476253980,0.002,2034.2,2033.2,5.88532614]
[1772476254703,0.002,2034.2,2033.4,5.88532614]
[1772476256178,0.002,2034.2,2033.5,1.613]
[1772476256706,0.002,2034.2,2033.5,7.49832614]
[1772476257307,0.002,2034.2,2033.6,1.22934697]
[1772476258008,0.002,2034.2,2033.6,7.11467311]
[1772476260312,0.002,2034.4,2033.7,5.88532614]
[1772476261815,0.002,2034.7,2033.8,0.065536]
[1772476262117,0.002,2034.9,2034.2,5.88532614]
[1772476262419,0.002,2034.9,2034.6,5.88532614]
[1772476262783,0.002,2035.4,2034.8,5.88532614]
[1772476262983,0.002,2035.8,2034.8,5.88532614]
[1772476263195,1.22812021,2035.7,2034.9,1.618]
[1772476263412,1.23004783,2035.8,2035.0,7.50332614]
[1772476263579,0.002,2035.8,2035.1,5.88532614]
[1772476264013,1.23001917,2035.8,2035.1,5.88532614]
[1772476264316,0.002,2035.8,2035.3,1.22832014]
[1772476264613,0.002,2035.8,2035.2,2.8463343]
[1772476264909,0.002,2035.8,2035.2,8.73166044]
[1772476265509,5.88890034,2035.8,2034.9,1.22852739]
[1772476265691,5.88890034,2035.8,2034.7,4.91465653]
[1772476266032,5.88890034,2035.8,2034.8,5.88532614]
[1772476266224,5.88890034,2035.8,2034.7,4.91465653]
[1772476266225,0.002,2035.8,2034.9,5.88532614]
[1772476266386,5.88890034,2035.8,2035.0,1.22850122]
[1772476267014,5.88890034,2035.8,2034.9,8.73184812]
[1772476267201,5.88690034,2035.7,2034.6,4.39613169]
[1772476267515,1.84303323,2035.8,2034.7,5.88532614]
[1772476267682,0.002,2035.8,2034.7,5.88532614]
[1772476268314,0.002,2035.8,2034.8,7.11394811]
[1772476268615,5.88890034,2035.8,2034.8,8.73294811]
[1772476268788,5.88690034,2035.7,2034.7,2.84764438]
[1772476269190,5.88690034,2035.7,2034.6,2.77811327]
[1772476269524,5.88690034,2035.4,2034.6,1.54941844]
[1772476269690,5.88690034,2035.2,2034.1,5.43328235]
[1772476269891,5.88690034,2035.2,2034.1,11.31860849]
[1772476270228,5.88690034,2035.1,2034.1,1.22899923]
[1772476270531,1.22850122,2035.0,2034.1,1.22899923]
[1772476271025,1.22850122,2035.0,2034.3,5.88532614]
[1772476272433,7.11540156,2035.0,2034.0,2.4686281]
[1772476273098,5.88690034,2034.2,2033.2,7.11487284]
[1772476273432,5.88690034,2034.2,2033.1,1.22964688]
[1772476273908,5.88690034,2034.2,2033.0,1.22967279]
[1772476274310,5.88690034,2034.2,2032.9,10.80435518]
[1772476274311,5.88690034,2033.9,2032.9,5.88532614]
[1772476274608,7.11612641,2033.8,2032.9,1.22977027]
[1772476274796,1.22922607,2033.8,2032.9,1.22977027]
[1772476274999,1.22922607,2033.8,2032.9,7.11509641]
[1772476275427,1.22922607,2033.8,2033.3,0.001]
[1772476276011,1.22910521,2034.0,2033.3,5.8822243]
[1772476276212,1.22888756,2034.4,2033.3,5.8822243]
[1772476276608,1.22888756,2034.4,2033.5,1.22940742]
[1772476278030,3.10576414,2034.6,2033.5,7.26950174]
[1772476278629,1.877,2034.6,2033.5,7.26950174]
[1772476278829,1.22850122,2035.0,2033.5,7.26950174]
[1772476279404,1.23032014,2035.4,2033.7,6.04009432]
[1772476279728,4.91334384,2035.3,2033.7,6.04009432]
[1772476279919,6.1861866,2035.2,2033.7,6.04009432]
[1772476280429,6.1861866,2034.9,2033.7,6.04009432]
[1772476280637,1.22868236,2034.7,2033.8,7.26932039]
[1772476280832,1.2286025,2034.9,2033.8,7.26932039]
[1772476281519,1.22844086,2035.1,2033.8,7.26932039]
[1772476282129,7.41462746,2035.1,2033.8,7.26932039]
[1772476282502,7.41462746,2035.1,2033.7,2.84824945]
[1772476282503,6.1861866,2034.8,2033.7,2.84824945]
[1772476282906,1.22868236,2034.7,2033.7,1.22924945]
[1772476283100,7.41486896,2034.7,2033.7,1.22924945]
[1772476283334,8.0611866,2034.6,2033.7,1.22924945]
[1772476284102,6.1861866,2033.7,2033.3,0.001]
[1772476284318,8.0631866,2033.7,2033.3,0.001]
[1772476285247,1.22934697,2033.6,2033.3,0.001]
[1772476286677,7.41468782,2035.1,2033.5,6.04009432]
[1772476286813,4.91405676,2035.0,2033.5,6.04009432]
[1772476287013,6.1861866,2035.0,2033.7,6.04009432]
[1772476287250,7.41450674,2035.3,2033.7,6.04009432]
[1772476287436,7.41450674,2035.3,2033.8,15.87498794]
[1772476287642,6.1861866,2035.3,2033.8,6.04009432]
[1772476287948,1.2302614,2035.4,2033.8,6.04009432]
[1772476288114,1.2302614,2035.4,2034.0,6.04009432]
[1772476288314,0.002,2035.4,2034.3,6.04009432]
[1772476288589,1.23026902,2035.4,2034.3,6.04009432]
[1772476289049,0.002,2034.4,2034.3,7.26901827]
[1772476289220,0.002,2034.7,2034.4,6.04009432]
[1772476289558,0.002,2035.4,2034.5,6.04009432]
[1772476290636,0.002,2035.4,2034.7,6.04009432]
[1772476291020,0.002,2035.4,2034.8,1.624]
[1772476291350,0.002,2035.4,2034.9,1.2285616]
[1772476292237,0.002,2035.4,2034.5,1.627]
[1772476292238,2.4191646,2035.4,2034.5,1.627]
[1772476292438,2.4191646,2035.4,2034.6,8.0]
[1772476292638,2.4191646,2035.4,2034.5,8.0]
[1772476292824,6.1861866,2035.3,2034.5,9.83489362]
[1772476293350,1.22834984,2035.3,2034.6,1.22874275]
[1772476293738,1.22834984,2035.3,2034.5,11.06369672]
[1772476294456,1.22834984,2035.3,2034.5,9.83489362]
[1772476294622,2.4171646,2035.2,2034.3,1.22888133]
[1772476294827,2.4171646,2035.2,2034.4,9.83489362]
[1772476295157,8.6033512,2035.2,2034.4,9.83489362]
[1772476295326,1.22844086,2035.1,2034.4,9.83489362]
[1772476295527,6.79817284,2035.4,2034.4,9.83489362]
[1772476295528,0.002,2035.4,2034.4,11.06375257]
[1772476295730,1.22836661,2035.3,2034.4,11.06375257]
[1772476296223,7.41455321,2035.3,2034.4,11.06375258]
[1772476296855,7.41455321,2035.3,2034.4,9.83489362]
[1772476297268,2.4171646,2035.2,2034.4,9.83489362]
[1772476297639,1.22844086,2035.1,2034.4,11.06375387]
[1772476298529,1.22844086,2035.1,2034.4,9.83489362]
[1772476299330,4.91340702,2035.3,2034.4,17.10383999]
[1772476300459,4.91340702,2035.3,2034.6,0.001]
[1772476300868,6.1861866,2035.0,2034.6,9.83489362]
[1772476301088,6.1861866,2035.0,2034.4,0.001]
[1772476302878,7.4147482,2034.9,2034.4,0.001]
[1772476303076,4.9142464,2035.0,2034.4,0.001]
[1772476303077,1.22854904,2035.0,2034.4,0.001]
[1772476303400,1.23008426,2035.7,2034.7,6.04009432]
[1772476303711,1.23008426,2035.7,2034.4,0.001]
[1772476303712,6.1861866,2035.5,2034.5,1.634]
[1772476303979,1.887,2035.6,2034.6,6.04009432]
[1772476304749,1.22819945,2035.5,2034.7,1.22868236]
[1772476305377,1.22819945,2035.5,2034.7,7.26877668]
[1772476305592,1.22818455,2035.6,2034.7,7.26877668]
[1772476306304,1.23008758,2035.7,2034.7,7.26877668]
[1772476307768,7.62766922,2035.7,2034.8,1.633]
[1772476308288,6.39758164,2035.6,2034.7,1.22868236]
[1772476309488,6.39758164,2035.6,2034.7,7.43000868]
[1772476309989,1.23008758,2035.7,2034.7,7.43000868]
[1772476310389,1.23008758,2035.7,2034.8,7.83232632]
[1772476312191,6.39958164,2035.7,2034.9,1.2285616]
[1772476312400,9.77946157,2035.4,2034.5,1.22880314]
[1772476312602,6.39758164,2035.4,2034.5,1.22880314]
[1772476312805,9.77946157,2035.0,2034.4,0.001]
[1772476313093,1.88,2034.9,2034.4,0.001]
[1772476313297,8.27758164,2034.9,2034.1,0.001]
[1772476313665,8.27758164,2034.9,2034.1,1.23003627]
[1772476313877,8.27758164,2034.9,2034.1,0.001]
[1772476314081,9.77946157,2034.7,2034.1,0.001]
[1772476314293,1.22874275,2034.6,2034.1,0.001]
[1772476315492,6.79426147,2034.9,2034.1,0.001]
[1772476315493,4.91459676,2034.8,2034.1,0.001]
[1772476315693,1.22862197,2034.8,2034.1,0.001]
[1772476315867,3.10856416,2034.9,2034.1,0.001]
[1772476316075,3.10856416,2034.9,2034.1,6.20232632]
[1772476316268,3.10856416,2034.9,2034.2,7.43031068]
[1772476316867,1.88,2034.9,2034.2,7.43031068]
[1772476317069,1.22852339,2035.0,2034.3,6.20132632]
[1772476317679,1.22852339,2035.0,2034.2,7.43031068]
[1772476318588,4.91376382,2035.1,2034.2,7.43031068]
[1772476318787,3.38187993,2035.0,2034.1,2.86301465]
[1772476319399,6.39758164,2034.9,2034.1,0.001]
[1772476319575,3.38187993,2034.4,2033.8,3.05246457]
[1772476319781,1.886,2034.3,2033.6,1.22930168]
[1772476319986,1.888,2034.4,2033.6,1.22930168]
[1772476320191,6.39758164,2034.7,2033.6,7.430628]
[1772476320394,1.887,2034.7,2033.6,7.430628]
[1772476320778,1.22874275,2034.6,2033.6,7.430628]
[1772476320988,6.801971,2034.7,2033.7,7.83832632]
[1772476320989,3.11572618,2034.7,2033.7,7.83832632]
[1772476321172,3.11568997,2034.7,2033.8,6.20132632]
[1772476321374,4.91412727,2035.0,2033.8,6.20132632]
[1772476321573,4.91412727,2035.0,2033.9,7.84032632]
[1772476321786,6.39758164,2034.9,2033.9,6.20132632]
[1772476322005,6.39758164,2034.9,2033.6,1.22930168]
[1772476322298,1.891,2034.8,2033.6,7.430628]
[1772476322880,1.22868236,2034.7,2033.6,7.430628]
[1772476323500,6.8055698,2034.8,2033.6,7.430628]
[1772476323501,3.11966826,2034.8,2033.6,7.430628]
[1772476324404,9.5172499,2034.8,2033.8,6.20132632]
[1772476324574,3.11966826,2034.8,2033.8,6.20132632]
[1772476324774,3.11962718,2034.8,2033.8,6.20132632]
[1772476324991,9.51720882,2034.8,2033.9,1.22916564]
[1772476325217,6.39758164,2034.7,2033.9,1.22916564]
[1772476325995,3.11962718,2034.8,2033.9,7.43049196]
[1772476326619,9.51720882,2034.8,2033.9,7.43049196]
[1772476327494,6.39758164,2034.7,2033.9,1.22916158]
[1772476327897,4.91448791,2035.1,2033.9,1.22916158]
[1772476327898,6.39758164,2035.3,2034.0,6.20132632]
[1772476328218,0.002,2035.5,2034.4,6.20132632]
[1772476328581,0.002,2035.5,2034.5,1.646]
[1772476328782,0.002,2035.5,2034.6,6.20132632]
[1772476329282,6.39758164,2035.4,2034.3,6.20132632]
[1772476329497,7.62590178,2035.3,2034.4,1.22886354]
[1772476330919,9.77946157,2035.2,2034.2,1.22895934]
[1772476331104,6.39758164,2035.2,2034.1,10.06186737]
[1772476331305,6.39758164,2035.2,2034.2,6.20132632]
[1772476331613,1.22830074,2035.4,2034.3,7.43025027]
[1772476332523,7.62588238,2035.4,2034.3,7.43025027]
[1772476333425,7.62588238,2035.4,2034.3,1.22892395]
[1772476333705,7.62588238,2035.4,2034.2,4.91569581]
[1772476333706,7.62588238,2035.4,2033.8,0.001]
[1772476333707,3.38187993,2034.9,2033.8,0.001]
[1772476333852,3.38187993,2035.2,2033.8,0.001]
[1772476333853,3.38187993,2034.6,2033.8,0.001]
[1772476334021,3.38187993,2034.3,2033.8,0.001]
[1772476334222,1.906,2034.2,2033.5,1.23036252]
[1772476334549,1.906,2034.2,2033.5,0.001]
[1772476334714,6.39758164,2034.0,2033.5,0.001]
[1772476335121,6.39758164,2035.3,2033.5,6.20232632]
[1772476335308,6.39758164,2035.2,2033.7,6.20132632]
[1772476335515,1.22844086,2035.1,2033.9,6.05534616]
[1772476335823,3.1373252,2035.3,2033.9,6.05534616]
[1772476336925,1.909,2035.3,2034.0,6.05534616]
[1772476337434,3.13732754,2035.3,2034.2,6.12642899]
[1772476337647,3.1373207,2035.3,2034.3,1.22892395]
[1772476337852,1.909,2035.3,2034.3,1.22892395]
[1772476338162,0.002,2034.6,2034.3,1.22892395]
[1772476338379,0.002,2034.8,2034.3,1.22892395]
[1772476340047,0.002,2035.1,2034.3,7.35535294]
[1772476340564,6.20510317,2035.1,2034.1,1.22899626]
[1772476341724,6.20310317,2034.8,2033.8,0.001]
[1772476343332,4.91600491,2035.1,2033.8,6.12742899]
[1772476343333,1.909,2034.7,2033.8,6.12742899]
[1772476343522,1.908,2035.0,2033.8,6.12742899]
[1772476343822,0.002,2035.1,2034.1,2.6206224]
[1772476344029,0.002,2035.1,2034.2,6.12642899]
[1772476346164,0.002,2035.1,2034.4,6.12642899]
[1772476348377,6.20510317,2035.1,2034.1,1.22900813]
[1772476349266,6.20510317,2035.1,2034.1,7.35543712]
[1772476349449,1.901,2035.0,2034.1,7.35543712]
[1772476349650,0.002,2035.1,2034.1,7.35543712]
[1772476349852,0.002,2035.1,2034.3,6.12742899]
[1772476350047,0.002,2035.1,2034.3,0.001]
[1772476351174,0.002,2035.1,2034.3,6.12742899]
[1772476352181,1.899,2035.5,2034.5,6.12642899]
[1772476352946,1.899,2035.5,2034.4,1.22886354]
[1772476352947,6.20310317,2035.4,2034.4,1.22886354]
[1772476353682,6.20310317,2035.4,2034.3,1.22988384]
[1772476354179,6.20310317,2035.2,2034.3,0.001]
[1772476356299,6.20310317,2035.0,2034.3,0.001]
[1772476356578,1.893,2034.9,2034.3,0.001]
[1772476356783,1.22841252,2035.2,2034.3,0.001]
[1772476356955,1.893,2035.0,2034.3,0.001]
[1772476358783,6.20310317,2035.3,2034.3,7.35635294]
[1772476358959,1.893,2035.3,2034.3,7.35635294]
[1772476359277,3.12132642,2035.3,2034.3,7.35635294]
[1772476359453,3.12132642,2035.3,2034.3,1.22992395]
[1772476359654,6.20310317,2035.2,2034.3,1.22992395]
[1772476360255,1.891,2035.1,2034.3,7.35635294]